fUST/lending_fUST_20250904
["ID","MTS","AMOUNT","RATE_DAILY","PERIOD"]
[383509284,1756966251762,-258.468781,0.00013972,2]
[383509285,1756966251771,-480.0,0.00013972,2]
[383509286,1756966251781,-151.0,0.00013972,2]
[383509287,1756966251792,-151.0,0.00013972,2]
[383509288,1756966251802,-480.0,0.00013972,2]
[383509289,1756966251812,-151.0,0.00013972,2]
[383509290,1756966251823,-151.0,0.00013972,2]
[383509291,1756966251834,-480.0,0.00013972,2]
[383509292,1756966251845,-151.0,0.00013972,2]
[383509293,1756966251854,-151.0,0.00013972,2]
[383509294,1756966251864,-482.31000798,0.00013972,2]
[383509295,1756966251874,-480.0,0.00013972,2]
[383509296,1756966251885,-480.0,0.00013972,2]
[383509297,1756966251894,-480.0,0.00013972,2]
[383509298,1756966251903,-480.0,0.00013972,2]
[383509299,1756966251914,-480.0,0.00013972,2]
[383509300,1756966251924,-480.0,0.00013972,2]
[383509301,1756966251934,-481.80341952,0.00013972,2]
[383509302,1756966251944,-481.7003316,0.00013972,2]
[383509303,1756966251954,-484.14334762,0.00013972,2]
[383509304,1756966251963,-480.0,0.00013972,2]
[383509305,1756966251973,-480.0,0.00013972,2]
[383509306,1756966251982,-480.0,0.00013972,2]
[383509307,1756966251992,-480.0,0.00013972,2]
[383509308,1756966252002,-482.83760743,0.00013972,2]
[383509309,1756966252011,-151.0,0.00013972,2]
[383509310,1756966252021,-1955.98,0.00013972,2]
[383509311,1756966252031,-480.0,0.00013972,2]
[383509312,1756966252041,-151.0,0.00013972,2]
[383509313,1756966252051,-480.0,0.00013972,2]
[383509314,1756966252062,-151.0,0.00013972,2]
[383509315,1756966252072,-156.76357,0.00013972,2]
[383509316,1756966252156,-151.0,0.00013972,2]
[383509317,1756966252167,-372.77923557,0.00013972,2]
[383509318,1756966252181,-480.0,0.00013972,2]
[383509319,1756966252191,-480.0,0.00013972,2]
[383509320,1756966252201,-480.0,0.00013972,2]
[383509321,1756966252211,-481.75935862,0.00013972,2]
[383509322,1756966252220,-156.76357,0.00013972,2]
[383509323,1756966252230,-156.76357,0.00013972,2]
[383509324,1756966252242,-157.828789,0.00013972,2]
[383509325,1756966252252,-156.763578,0.00013972,2]
[383509326,1756966252262,-480.0,0.00013972,2]
[383509327,1756966252274,-289.3796986,0.00013972,2]
[383509328,1756966252284,-481.10671723,0.00013972,2]
[383509329,1756966252298,-480.0,0.00013972,2]
[383509330,1756966252307,-480.0,0.00013972,2]
[383509331,1756966252317,-480.0,0.00013972,2]
[383509332,1756966252327,-480.0,0.00013972,2]
[383509333,1756966252338,-480.0,0.00013972,2]
[383509334,1756966252351,-480.0,0.00013972,2]
[383509335,1756966252361,-480.0,0.00013972,2]
[383509336,1756966252371,-480.0,0.00013972,2]
[383509337,1756966252381,-481.73881723,0.00013972,2]
[383509338,1756966252390,-480.0,0.00013972,2]
[383509339,1756966252399,-480.0,0.00013972,2]
[383509340,1756966252410,-480.0,0.00013972,2]
[383509341,1756966252419,-480.0,0.00013972,2]
[383509342,1756966252429,-480.0,0.00013972,2]
[383509343,1756966252440,-480.0,0.00013972,2]
[383509344,1756966252449,-480.0,0.00013972,2]
[383509345,1756966252459,-480.0,0.00013972,2]
[383509346,1756966252468,-480.0,0.00013972,2]
[383509347,1756966252478,-480.0,0.00013972,2]
[383509348,1756966252487,-480.0,0.00013972,2]
[383509349,1756966252497,-480.0,0.00013972,2]
[383509350,1756966252507,-480.0,0.00013972,2]
[383509351,1756966252517,-151.0,0.00013972,2]
[383509352,1756966252529,-480.0,0.00013972,2]
[383509353,1756966252539,-151.0,0.00013972,2]
[383509354,1756966252549,-480.0,0.00013972,2]
[383509355,1756966252561,-480.0,0.00013972,2]
[383509356,1756966252570,-480.0,0.00013972,2]
[383509357,1756966252580,-480.0,0.00013972,2]
[383509358,1756966252589,-480.0,0.00013972,2]
[383509359,1756966252598,-480.0,0.00013972,2]
[383509360,1756966252608,-151.0,0.00013972,2]
[383509361,1756966252617,-151.0,0.00013972,2]
[383509362,1756966252626,-480.0,0.00013972,2]
[383509363,1756966252635,-480.0,0.00013972,2]
[383509364,1756966252645,-480.0,0.00013972,2]
[383509365,1756966252654,-480.0,0.00013972,2]
[383509366,1756966252664,-480.0,0.00013972,2]
[383509367,1756966252673,-480.0,0.00013972,2]
[383509368,1756966252683,-483.46564549,0.00013972,2]
[383509369,1756966252693,-151.0,0.00013972,2]
[383509370,1756966252703,-151.0,0.00013972,2]
[383509371,1756966252716,-480.0,0.00013972,2]
[383509372,1756966252735,-143.84936028,0.00013972,2]
[383509373,1756966253109,-480.0,0.00013698,2]
[383509374,1756966253119,-7.15063972,0.00013972,2]
[383509375,1756966253128,-474.60935988,0.00013972,2]
[383509376,1756966253197,-341.3139193,0.00013524,2]
[383509377,1756966253208,-5.39064012,0.00013972,2]
[383509378,1756966253411,-151.0,0.00013972,2]
[383509379,1756966253429,-480.0,0.00013972,2]
[383509380,1756966253444,-480.0,0.00013972,2]
[383509381,1756966253453,-480.0,0.00013972,2]
[383509382,1756966253462,-153.086999,0.00013972,2]
[383509383,1756966253471,-480.0,0.00013972,2]
[383509384,1756966253481,-483.51452311,0.00013972,2]
[383509385,1756966253492,-496.72277119,0.00013972,2]
[383509386,1756966253502,-480.0,0.00013972,2]
[383509387,1756966253512,-253.18989756,0.00013972,2]
[383509388,1756966253522,-480.0,0.00013972,2]
[383509389,1756966253533,-480.0,0.00013972,2]
[383509390,1756966253543,-185.13441732,0.00013972,2]
[383509391,1756966253553,-481.79063773,0.00013972,2]
[383509392,1756966253563,-480.0,0.00013972,2]
[383509393,1756966253573,-482.05078182,0.00013972,2]
[383509394,1756966253583,-200.74056,0.00013972,2]
[383509395,1756966253592,-200.74056,0.00013972,2]
[383509396,1756966253602,-151.0,0.00013972,2]
[383509397,1756966253611,-480.0,0.00013972,2]
[383509398,1756966253622,-200.74056,0.00013972,2]
[383509399,1756966253632,-480.0,0.00013972,2]
[383509400,1756966253642,-200.740567,0.00013972,2]
[383509401,1756966253651,-400.40224245,0.00013972,2]
[383509402,1756966253661,-480.0,0.00013972,2]
[383509403,1756966253670,-480.0,0.00013972,2]
[383509404,1756966253680,-480.0,0.00013972,2]
[383509405,1756966253690,-482.92247789,0.00013972,2]
[383509406,1756966253699,-480.0,0.00013972,2]
[383509407,1756966253714,-484.30300749,0.00013972,2]
[383509408,1756966253724,-480.0,0.00013972,2]
[383509409,1756966253733,-480.0,0.00013972,2]
[383509410,1756966253742,-551.63,0.00013972,2]
[383509411,1756966253751,-480.0,0.00013972,2]
[383509412,1756966253760,-480.0,0.00013972,2]
[383509413,1756966253770,-480.0,0.00013972,2]
[383509414,1756966253779,-480.0,0.00013972,2]
[383509415,1756966253789,-480.0,0.00013972,2]
[383509416,1756966253801,-480.0,0.00013972,2]
[383509417,1756966253812,-480.0,0.00013972,2]
[383509418,1756966253822,-480.0,0.00013972,2]
[383509419,1756966253831,-480.0,0.00013972,2]
[383509420,1756966253840,-480.0,0.00013972,2]
[383509421,1756966253849,-486.88020246,0.00013972,2]
[383509422,1756966253858,-480.0,0.00013972,2]
[383509423,1756966253867,-480.0,0.00013972,2]
[383509424,1756966253876,-480.0,0.00013972,2]
[383509425,1756966253885,-480.0,0.00013972,2]
[383509426,1756966253895,-483.98627919,0.00013972,2]
[383509427,1756966253904,-151.0,0.00013972,2]
[383509428,1756966253913,-151.0,0.00013972,2]
[383509429,1756966253923,-230.74040021,0.00013972,2]
[383509430,1756966253933,-159.032414,0.00013972,2]
[383509431,1756966253944,-480.0,0.00013972,2]
[383509432,1756966253954,-480.0,0.00013972,2]
[383509433,1756966253964,-480.0,0.00013972,2]
[383509434,1756966253974,-480.0,0.00013972,2]
[383509435,1756966253984,-480.0,0.00013972,2]
[383509436,1756966253994,-1380.74,0.00013972,2]
[383509437,1756966254004,-483.72518733,0.00013972,2]
[383509438,1756966254013,-482.98377092,0.00013972,2]
[383509439,1756966254023,-480.0,0.00013972,2]
[383509440,1756966254032,-480.0,0.00013972,2]
[383509441,1756966254042,-480.0,0.00013972,2]
[383509442,1756966254051,-480.0,0.00013972,2]
[383509443,1756966254060,-480.0,0.00013972,2]
[383509444,1756966254071,-793.67,0.00013972,2]
[383509445,1756966254080,-480.0,0.00013972,2]
[383509446,1756966254090,-273.36889784,0.00013972,2]
[383509447,1756966254099,-480.0,0.00013972,2]
[383509448,1756966254109,-480.0,0.00013972,2]
[383509449,1756966254118,-483.24615572,0.00013972,2]
[383509450,1756966254128,-482.33025971,0.00013972,2]
[383509451,1756966254137,-483.09089622,0.00013972,2]
[383509452,1756966254147,-480.0,0.00013972,2]
[383509453,1756966254156,-480.0,0.00013972,2]
[383509454,1756966254166,-480.0,0.00013972,2]
[383509455,1756966254177,-480.0,0.00013972,2]
[383509456,1756966254186,-1589.65,0.00013972,2]
[383509457,1756966254197,-480.0,0.00013972,2]
[383509458,1756966254207,-480.0,0.00013972,2]
[383509459,1756966254217,-480.0,0.00013972,2]
[383509460,1756966254226,-480.0,0.00013972,2]
[383509461,1756966254236,-480.0,0.00013972,2]
[383509462,1756966254247,-480.0,0.00013972,2]
[383509463,1756966254257,-480.0,0.00013972,2]
[383509464,1756966254266,-480.0,0.00013972,2]
[383509465,1756966254276,-480.0,0.00013972,2]
[383509466,1756966254285,-480.0,0.00013972,2]
[383509467,1756966254294,-986.31,0.00013972,2]
[383509468,1756966254304,-480.0,0.00013972,2]
[383509469,1756966254314,-480.0,0.00013972,2]
[383509470,1756966254323,-482.21006931,0.00013972,2]
[383509471,1756966254332,-480.0,0.00013972,2]
[383509472,1756966254342,-480.0,0.00013972,2]
[383509473,1756966254352,-480.0,0.00013972,2]
[383509474,1756966254363,-1481.23,0.00013972,2]
[383509475,1756966254375,-480.0,0.00013972,2]
[383509476,1756966254385,-480.0,0.00013972,2]
[383509477,1756966254395,-480.0,0.00013972,2]
[383509478,1756966254404,-570.17359786,0.00013972,2]
[383509479,1756966254412,-569.51640365,0.00013972,2]
[383509480,1756966254421,-480.0,0.00013972,2]
[383509481,1756966254429,-1157.93,0.00013972,2]
[383509482,1756966254438,-480.0,0.00013972,2]
[383509483,1756966254448,-480.0,0.00013972,2]
[383509484,1756966254458,-480.0,0.00013972,2]
[383509485,1756966254469,-480.0,0.00013972,2]
[383509486,1756966254478,-572.66982766,0.00013972,2]
[383509487,1756966254488,-480.0,0.00013972,2]
[383509488,1756966254498,-480.0,0.00013972,2]
[383509489,1756966254508,-1261.71,0.00013972,2]
[383509490,1756966254519,-480.0,0.00013972,2]
[383509491,1756966254528,-1248.53,0.00013972,2]
[383509492,1756966254539,-1745.3,0.00013972,2]
[383509493,1756966254548,-480.0,0.00013972,2]
[383509494,1756966254560,-151.0,0.00013972,2]
[383509495,1756966254570,-151.0,0.00013972,2]
[383509496,1756966254579,-480.0,0.00013972,2]
[383509497,1756966254589,-480.0,0.00013972,2]
[383509498,1756966254599,-151.0,0.00013972,2]
[383509499,1756966254608,-151.0,0.00013972,2]
[383509500,1756966254618,-480.0,0.00013972,2]
[383509501,1756966254627,-480.0,0.00013972,2]
[383509502,1756966254637,-151.0,0.00013972,2]
[383509503,1756966254647,-480.0,0.00013972,2]
[383509504,1756966254658,-480.0,0.00013972,2]
[383509505,1756966254667,-547.67707713,0.00013972,2]
[383509506,1756966254677,-480.0,0.00013972,2]
[383509507,1756966254686,-480.0,0.00013972,2]
[383509508,1756966254696,-480.0,0.00013972,2]
[383509509,1756966254706,-480.40041886,0.00013972,2]
[383509510,1756966254715,-480.0,0.00013972,2]
[383509511,1756966254724,-480.0,0.00013972,2]
[383509512,1756966254735,-480.0,0.00013972,2]
[383509513,1756966254745,-480.0,0.00013972,2]
[383509514,1756966254754,-480.0,0.00013972,2]
[383509515,1756966254764,-480.0,0.00013972,2]
[383509516,1756966254773,-480.0,0.00013972,2]
[383509517,1756966254782,-480.0,0.00013972,2]
[383509518,1756966254791,-480.0,0.00013972,2]
[383509519,1756966254801,-481.95129524,0.00013972,2]
[383509520,1756966254810,-480.0,0.00013972,2]
[383509521,1756966254820,-480.0,0.00013972,2]
[383509522,1756966254829,-480.0,0.00013972,2]
[383509523,1756966254838,-480.0,0.00013972,2]
[383509524,1756966254846,-480.0,0.00013972,2]
[383509525,1756966254854,-707.56,0.00013972,2]
[383509526,1756966254862,-480.0,0.00013972,2]
[383509527,1756966254872,-480.0,0.00013972,2]
[383509528,1756966254881,-480.0,0.00013972,2]
[383509529,1756966254891,-480.0,0.00013972,2]
[383509530,1756966254900,-480.0,0.00013972,2]
[383509531,1756966254909,-3695.51,0.00013972,2]
[383509532,1756966254919,-480.0,0.00013972,2]
[383509533,1756966254928,-480.0,0.00013972,2]
[383509534,1756966254938,-981.22,0.00013972,2]
[383509535,1756966254948,-480.0,0.00013972,2]
[383509536,1756966254957,-480.0,0.00013972,2]
[383509537,1756966254967,-480.0,0.00013972,2]
[383509538,1756966254976,-1985.11,0.00013972,2]
[383509539,1756966254986,-481.66319009,0.00013972,2]
[383509540,1756966254996,-480.0,0.00013972,2]
[383509541,1756966255005,-481.14037889,0.00013972,2]
[383509542,1756966255015,-480.0,0.00013972,2]
[383509543,1756966255024,-480.0,0.00013972,2]
[383509544,1756966255033,-486.50230683,0.00013972,2]
[383509545,1756966255043,-830.46,0.00013972,2]
[383509546,1756966255053,-480.0,0.00013972,2]
[383509547,1756966255062,-481.78186912,0.00013972,2]
[383509548,1756966255072,-480.0,0.00013972,2]
[383509549,1756966255081,-480.0,0.00013972,2]
[383509550,1756966255091,-480.0,0.00013972,2]
[383509551,1756966255100,-1526.41,0.00013972,2]
[383509552,1756966255110,-599.79,0.00013972,2]
[383509553,1756966255120,-480.0,0.00013972,2]
[383509554,1756966255129,-480.0,0.00013972,2]
[383509555,1756966255139,-487.77,0.00013972,2]
[383509556,1756966255149,-151.0,0.00013972,2]
[383509557,1756966255158,-484.98,0.00013972,2]
[383509558,1756966255169,-151.0,0.00013972,2]
[383509559,1756966255180,-480.0,0.00013972,2]
[383509560,1756966255189,-480.0,0.00013972,2]
[383509561,1756966255199,-480.0,0.00013972,2]
[383509562,1756966255209,-487.581954,0.00013972,2]
[383509563,1756966255219,-480.0,0.00013972,2]
[383509564,1756966255230,-480.0,0.00013972,2]
[383509565,1756966255239,-480.0,0.00013972,2]
[383509566,1756966255249,-480.0,0.00013972,2]
[383509567,1756966255260,-196.97332256,0.00013972,2]
[383509568,1756966255269,-495.80694146,0.00013972,2]
[383509569,1756966255279,-480.0,0.00013972,2]
[383509570,1756966255289,-480.0,0.00013972,2]
[383509571,1756966255298,-480.0,0.00013972,2]
[383509572,1756966255308,-480.0,0.00013972,2]
[383509573,1756966255318,-480.0,0.00013972,2]
[383509574,1756966255328,-480.0,0.00013972,2]
[383509575,1756966255338,-480.0,0.00013972,2]
[383509576,1756966255348,-480.0,0.00013972,2]
[383509577,1756966255360,-500.0,0.00013973,2]
[383509578,1756966255370,-501.06886129,0.00013973,2]
[383509579,1756966255379,-500.54829314,0.00013973,2]
[383509580,1756966255389,-500.45365264,0.00013973,2]
[383509581,1756966255399,-500.0,0.00013973,2]
[383509582,1756966255410,-500.0,0.00013973,2]
[383509583,1756966255421,-501.06226976,0.00013973,2]
[383509584,1756966255431,-500.28822642,0.00013973,2]
[383509585,1756966255442,-500.90485029,0.00013973,2]
[383509586,1756966255452,-500.42597766,0.00013973,2]
[383509587,1756966255461,-415.38278784,0.00013973,2]
[383509588,1756966255471,-500.0,0.00013973,2]
[383509589,1756966255483,-500.6263614,0.00013973,2]
[383509590,1756966255496,-500.58481951,0.00013973,2]
[383509591,1756966255511,-500.0,0.00013973,2]
[383509592,1756966255520,-500.0,0.00013973,2]
[383509593,1756966255532,-315.6651766,0.00013973,2]
[383509594,1756966255542,-503.82833155,0.00013973,2]
[383509595,1756966255551,-529.38268366,0.00013973,2]
[383509596,1756966255561,-504.30644344,0.00013973,2]
[383509597,1756966255570,-624.81552393,0.00013973,2]
[383509598,1756966255579,-500.0,0.00013973,2]
[383509599,1756966255591,-500.0,0.00013973,2]
[383509600,1756966255601,-151.0,0.00013988,2]
[383509601,1756966255610,-151.0,0.00013988,2]
[383509602,1756966255621,-151.0,0.00013988,2]
[383509603,1756966255631,-151.0,0.00013988,2]
[383509604,1756966255642,-151.0,0.00013988,2]
[383509605,1756966255652,-151.0,0.00013988,2]
[383509606,1756966255662,-151.0,0.00013988,2]
[383509607,1756966255672,-258.468781,0.00013988,2]
[383509608,1756966255682,-258.468781,0.00013988,2]
[383509609,1756966255694,-258.468781,0.00013988,2]
[383509610,1756966255703,-258.468774,0.00013988,2]
[383509611,1756966255714,-151.0,0.00013988,2]
[383509612,1756966255724,-151.0,0.00013988,2]
[383509613,1756966255734,-151.0,0.00013988,2]
[383509614,1756966255744,-151.0,0.00013988,2]
[383509615,1756966255753,-151.0,0.00013988,2]
[383509616,1756966255763,-151.0,0.00013988,2]
[383509617,1756966255775,-151.0,0.00013988,2]
[383509618,1756966255785,-151.0,0.00013988,2]
[383509619,1756966255795,-34895.91047521,0.0001399,2]
[383509620,1756966255811,-14995.03365,0.0001399,2]
[383509621,1756966256217,-151.0,0.00013698,2]
[383509622,1756966256228,-151.0,0.00013698,2]
[383509623,1756966256237,-151.0,0.00013698,2]
[383509624,1756966256247,-51.51802019,0.00013698,2]
[383509625,1756966256395,-99.48197981,0.00013698,2]
[383509626,1756966256404,-151.0,0.00013698,2]
[383509627,1756966256413,-151.0,0.00013698,2]
[383509628,1756966256422,-144.63984647,0.00013857,2]
[383509629,1756966316960,-1072.10649008,0.00013258,2]
[383509630,1756966316990,-300.0,0.00013391,2]
[383509631,1756966317021,-500.0,0.00013392,2]
[383509632,1756966317052,-500.0,0.00013392,2]
[383509633,1756966317080,-500.0,0.00013392,2]
[383509634,1756966317108,-500.0,0.00013392,2]
[383509635,1756966317136,-500.0,0.00013392,2]
[383509636,1756966317165,-500.0,0.00013392,2]
[383509637,1756966317196,-341.34598221,0.00013392,2]
[383509638,1756966317227,-73.10505542,0.00013392,2]
[383509639,1756966317341,-426.89494458,0.00013392,2]
[383509640,1756966317378,-500.0,0.00013392,2]
[383509641,1756966317409,-499.52926934,0.00013392,2]
[383509642,1756966317437,-500.0,0.00013392,2]
[383509643,1756966317466,-500.0,0.00013392,2]
[383509644,1756966317499,-500.0,0.00013392,2]
[383509645,1756966317529,-500.0,0.00013392,2]
[383509646,1756966317557,-500.0,0.00013392,2]
[383509647,1756966317586,-500.0,0.00013392,2]
[383509648,1756966317615,-500.0,0.00013392,2]
[383509649,1756966317758,-500.0,0.00013392,2]
[383509650,1756966317788,-500.0,0.00013392,2]
[383509651,1756966317816,-500.0,0.00013392,2]
[383509652,1756966317845,-500.0,0.00013392,2]
[383509653,1756966317874,-500.0,0.00013392,2]
[383509654,1756966317905,-500.0,0.00013392,2]
[383509655,1756966317934,-500.0,0.00013392,2]
[383509656,1756966317963,-553.05491588,0.00013392,2]
[383509657,1756966317992,-500.0,0.00013392,2]
[383509658,1756966318142,-244.66797797,0.00013392,2]
[383509659,1756966318225,-500.0,0.00013392,2]
[383509660,1756966318256,-500.0,0.00013392,2]
[383509661,1756966318288,-500.0,0.00013392,2]
[383509662,1756966318318,-500.0,0.00013392,2]
[383509663,1756966318349,-500.0,0.00013392,2]
[383509664,1756966318383,-500.0,0.00013392,2]
[383509665,1756966318414,-500.0,0.00013392,2]
[383509666,1756966318444,-222.35928373,0.00013392,2]
[383509667,1756966318474,-187.96298212,0.00013397,2]
[383509668,1756966318508,-500.0,0.00013397,2]
[383509669,1756966318539,-500.0,0.00013397,2]
[383509670,1756966318674,-500.0,0.00013397,2]
[383509671,1756966318705,-500.0,0.00013397,2]
[383509672,1756966318736,-500.0,0.00013397,2]
[383509673,1756966318766,-500.0,0.00013397,2]
[383509674,1756966318796,-280.12412049,0.00013397,2]
[383509675,1756966318826,-500.0,0.00013397,2]
[383509676,1756966318856,-500.0,0.00013397,2]
[383509677,1756966318886,-500.0,0.00013397,2]
[383509678,1756966318916,-500.0,0.00013397,2]
[383509679,1756966318946,-500.0,0.00013397,2]
[383509680,1756966319107,-500.0,0.00013397,2]
[383509681,1756966319140,-500.0,0.00013397,2]
[383509682,1756966319172,-500.0,0.00013397,2]
[383509683,1756966319207,-500.0,0.00013397,2]
[383509684,1756966319242,-500.0,0.00013397,2]
[383509685,1756966319275,-500.0,0.00013397,2]
[383509686,1756966319306,-500.0,0.00013397,2]
[383509687,1756966319339,-500.0,0.00013397,2]
[383509688,1756966319376,-500.0,0.00013397,2]
[383509689,1756966319409,-500.0,0.00013397,2]
[383509690,1756966319515,-500.0,0.00013397,2]
[383509691,1756966319547,-500.0,0.00013397,2]
[383509692,1756966319580,-348.8260653,0.00013397,2]
[383509693,1756966319609,-500.0,0.00013397,2]
[383509694,1756966319638,-227.90448127,0.00013671,2]
[383509695,1756966319667,-480.0,0.00013698,2]
[383509696,1756966319697,-1457.18,0.00013698,2]
[383509697,1756966319725,-151.0,0.00013698,2]
[383509698,1756966319754,-289.09056,0.00013698,2]
[383509699,1756966319784,-480.0,0.00013698,2]
[383509700,1756966319916,-480.0,0.00013698,2]
[383509701,1756966319946,-1357.8,0.00013698,2]
[383509702,1756966319976,-480.0,0.00013698,2]
[383509703,1756966320005,-410.77386914,0.00013698,2]
[383509704,1756966320035,-480.0,0.00013698,2]
[383509705,1756966320064,-480.0,0.00013698,2]
[383509706,1756966320096,-480.0,0.00013698,2]
[383509707,1756966320127,-480.0,0.00013698,2]
[383509708,1756966320159,-222.86226172,0.00013698,2]
[383509709,1756966320430,-257.13773828,0.00013698,2]
[383509710,1756966320459,-480.0,0.00013698,2]
[383509711,1756966320488,-481.86739459,0.00013698,2]
[383509712,1756966320517,-512.87,0.00013698,2]
[383509713,1756966320546,-480.0,0.00013698,2]
[383509714,1756966320575,-480.0,0.00013698,2]
[383509715,1756966320603,-480.0,0.00013698,2]
[383509716,1756966320632,-482.97016177,0.00013698,2]
[383509717,1756966320661,-480.0,0.00013698,2]
[383509718,1756966320689,-480.0,0.00013698,2]
[383509719,1756966320719,-290.31941072,0.00013698,2]
[383509720,1756966320780,-189.68058928,0.00013698,2]
[383509721,1756966320810,-480.0,0.00013698,2]
[383509722,1756966320840,-480.0,0.00013698,2]
[383509723,1756966320868,-164.976375,0.00013698,2]
[383509724,1756966320898,-1061.44,0.00013698,2]
[383509725,1756966320927,-480.0,0.00013698,2]
[383509726,1756966320956,-494.48606356,0.00013698,2]
[383509727,1756966320984,-291.40435406,0.00013698,2]
[383509728,1756966321014,-480.0,0.00013698,2]
[383509729,1756966323739,581.05966095,0.00013598,2]
[383509730,1756966324211,480.0,0.00013698,2]
[383509731,1756966330431,1144.49,0.00013698,2]
[383509732,1756966331516,480.0,0.00013698,2]
[383509733,1756966332827,482.35822572,0.00013698,2]
[383509734,1756966334515,480.0,0.00013698,2]
[383509735,1756966336685,1792.98,0.00013698,2]
[383509736,1756966337317,1156.57,0.00013698,2]
[383509737,1756966339019,480.0,0.00013698,2]
[383509738,1756966343031,485.80877706,0.00013698,2]
[383509739,1756966344246,482.7276579,0.00013698,2]
[383509740,1756966345430,480.0,0.00013698,2]
[383509741,1756966345938,480.0,0.00013698,2]
[383509742,1756966346211,480.0,0.00013698,2]
[383509743,1756966346243,480.0,0.00013698,2]
[383509744,1756966350442,480.0,0.00013698,2]
[383509746,1756966351952,480.0,0.00013698,2]
[383509747,1756966352302,1279.56533932,0.00013698,2]
[383509748,1756966352325,320.28466068,0.00013698,2]
[383509749,1756966354045,480.0,0.00013698,2]
[383509750,1756966354308,480.0,0.00013698,2]
[383509751,1756966354367,480.0,0.00013698,2]
[383509752,1756966355667,480.0,0.00013698,2]
[383509753,1756966356624,480.0,0.00013698,2]
[383509754,1756966357877,480.0,0.00013698,2]
[383509755,1756966359019,485.58665301,0.00013698,2]
[383509756,1756966360621,480.0,0.00013698,2]
[383509758,1756966363696,484.49243425,0.00013698,2]
[383509759,1756966364254,480.0,0.00013698,2]
[383509760,1756966364716,480.0,0.00013698,2]
[383509761,1756966365711,480.0,0.00013698,2]
[383509762,1756966369632,480.0,0.00013698,2]
[383509764,1756966370564,590.24,0.00013698,2]
[383509765,1756966371721,480.0,0.00013698,2]
[383509766,1756966373744,480.0,0.00013698,2]
[383509767,1756966376666,480.0,0.00013698,2]
[383509769,1756966379353,480.0,0.00013698,2]
[383509770,1756966380580,480.0,0.00013698,2]
[383509771,1756966382432,439.40625206,0.00013698,2]
[383509772,1756966382458,2948.14374794,0.00013698,2]
[383509773,1756966382563,484.66216392,0.00013698,2]
[383509774,1756966383956,480.0,0.00013698,2]
[383509777,1756966385360,480.0,0.00013698,2]
[383509778,1756966385961,480.0,0.00013698,2]
[383509779,1756966386751,480.0,0.00013698,2]
[383509780,1756966389386,480.0,0.00013698,2]
[383509781,1756966389870,4167.20408814,0.00013293,2]
[383509782,1756966389894,10000.01,0.00013293,2]
[383509783,1756966389918,10000.01,0.00013293,2]
[383509784,1756966389944,10000.01,0.00013293,2]
[383509786,1756966391479,-626.81215849,0.00013293,2]
[383509787,1756966395208,-326.81215849,0.00013293,2]
[383509789,1756966401021,-300.0,0.00013293,2]
[383509790,1756966404063,-300.0,0.00013293,2]
[383509791,1756966406244,-412.04589364,0.00013293,2]